fUSD/lending_fUSD_20251112
["ID","MTS","AMOUNT","RATE_DAILY","PERIOD"]
[393730134,1762955246740,600.0,0.00049315,30]
[393730135,1762955246806,761.78490304,0.0004775,120]
[393730136,1762955246971,150.0,0.000503,30]
[393730137,1762955247051,600.0,0.00049315,30]
[393730138,1762955247197,600.0,0.00049315,30]
[393730139,1762955247306,600.0,0.00049315,30]
[393730140,1762955247365,600.0,0.00049315,30]
[393730141,1762955247675,600.0,0.00049315,30]
[393730142,1762955247836,600.0,0.00049315,30]
[393730143,1762955247918,600.0,0.00049315,30]
[393730144,1762955247996,706.0,0.00051755,30]
[393730145,1762955248056,200.0,0.00040232,30]
[393730146,1762955248114,706.0,0.00051755,30]
[393730147,1762955248174,706.0,0.00051755,30]
[393730148,1762955248236,706.0,0.00051755,30]
[393730149,1762955248340,300.0,0.00040232,30]
[393730150,1762955248397,600.0,0.00049315,30]
[393730151,1762955248454,536.29187502,0.00049613,120]
[393730152,1762955248510,706.0,0.00051755,30]
[393730153,1762955248565,706.0,0.00051755,30]
[393730154,1762955248623,600.0,0.00049315,30]
[393730155,1762955248679,706.0,0.00051755,30]
[393730156,1762955248739,706.0,0.00051755,30]
[393730157,1762955248798,706.0,0.00051755,30]
[393730158,1762955248855,600.0,0.00049315,30]
[393730159,1762955248934,706.0,0.00051755,30]
[393730160,1762955249030,706.0,0.00051755,30]
[393730161,1762955249086,706.0,0.00051755,30]
[393730162,1762955249191,600.0,0.00049315,30]
[393730163,1762955249250,706.0,0.00051755,30]
[393730164,1762955249436,706.0,0.00051755,30]
[393730165,1762955249678,706.0,0.00051755,30]
[393730166,1762955249828,706.0,0.00051755,30]
[393730167,1762955249887,600.0,0.00049315,30]
[393730168,1762955259386,-150.0,0.00049315,30]
[393730169,1762955259452,-600.0,0.00049315,30]
[393730170,1762955259512,-706.0,0.00051755,30]
[393730171,1762955259583,-706.0,0.00051755,30]
[393730172,1762955259641,-706.0,0.00051755,30]
[393730173,1762955259695,-706.0,0.00051755,30]
[393730174,1762955259749,-706.0,0.00051755,30]
[393730175,1762955259802,-706.0,0.00051755,30]
[393730176,1762955259860,-706.0,0.00051755,30]
[393730177,1762955259912,-706.44290651,0.00051755,30]
[393730178,1762955259965,-500.0,0.00051755,30]
[393730179,1762955260016,-500.0,0.00051755,30]
[393730180,1762955260069,-355.79899462,0.00051755,30]
[393730181,1762955260118,-500.0,0.00051755,30]
[393730182,1762955260168,-613.81012894,0.00051755,30]
[393730183,1762955260219,-500.0,0.00051755,30]
[393730184,1762955260267,-500.0,0.00051755,30]
[393730185,1762955260319,-500.0,0.00051755,30]
[393730186,1762955260369,-350.0,0.00051755,30]
[393730187,1762955260421,-500.0,0.00052054,30]
[393730188,1762955260480,-153.0,0.000521,120]
[393730189,1762955260546,-155.0,0.000522,120]
[393730190,1762955260605,-934.78,0.00052328,120]
[393730191,1762955260661,-2000.0,0.0005253,63]
[393730192,1762955260718,-934.78,0.00052602,120]
[393730193,1762955261028,-231.89549983,0.000527,120]
[393730194,1762955261087,-1171.41540678,0.000527,120]
[393730195,1762955261152,-153.0,0.000528,120]
[393730196,1762955261220,-934.78,0.00052876,120]
[393730197,1762955261273,-1000.0,0.00052999,120]
[393730198,1762955261329,-50000.0,0.00053,93]
[393730199,1762955261383,-1000.0,0.00053,120]
[393730200,1762955261439,-403.85453761,0.00053,120]
[393730201,1762955261491,-1000.0,0.00053,120]
[393730202,1762955261545,-1000.0,0.00053,70]
[393730203,1762955261598,-1543.0,0.00053,120]
[393730204,1762955261657,-1835.0,0.00053,120]
[393730205,1762955261719,-1500.0,0.00053,30]
[393730206,1762955261783,-2000.0,0.00053,120]
[393730207,1762955261840,-150.0,0.00053,120]
[393730208,1762955261895,-150.0,0.00053113,120]
[393730209,1762955261948,-934.78,0.0005315,120]
[393730210,1762955261999,-155.0,0.000533,120]
[393730211,1762955262050,-2082.80185956,0.000534,120]
[393730212,1762955262100,-934.78,0.00053424,120]
[393730213,1762955262151,-250.0,0.000535,30]
[393730214,1762955262201,-153.0,0.000535,120]
[393730215,1762955262254,-934.78,0.00053698,120]
[393730216,1762955262305,-528.0,0.000538,120]
[393730217,1762955262357,-503.0,0.000538,120]
[393730218,1762955262407,-569.0,0.000538,120]
[393730219,1762955262456,-1000.0,0.000538,120]
[393730220,1762955262506,-150.0,0.00053883,120]
[393730221,1762955262558,-2956.11,0.000539,120]
[393730222,1762955262608,-64663.48227832,0.0005392,120]
[393730223,1762955262665,-934.78,0.00053972,120]
[393730224,1762955262715,-5060.28637102,0.00053998,31]
[393730225,1762955262765,-1000.0,0.00053999,120]
[393730226,1762955262821,-50000.0,0.00054,94]
[393730227,1762955262873,-284.90875871,0.00054,120]
[393730228,1762955262921,-200.0,0.00054,120]
[393730229,1762955262968,-1000.0,0.00054,120]
[393730230,1762955263015,-5000.0,0.00054,120]
[393730231,1762955263066,-322.8134835,0.00054,30]
[393730232,1762955263123,-2000.0,0.00054,120]
[393730233,1762955263173,-457.72199912,0.00054,120]
[393730234,1762955263224,-982.45,0.00054,30]
[393730235,1762955263275,-200.0,0.00054,120]
[393730236,1762955263325,-2373.11130436,0.00054,120]
[393730237,1762955263374,-3065.73612063,0.00054,120]
[393730238,1762955263422,-150.0,0.00054,120]
[393730239,1762955263478,-934.78,0.00054246,120]
[393730240,1762955263528,-1407.47252673,0.00054246,120]
[393730241,1762955263581,-155.0,0.000543,120]
[393730242,1762955263632,-153.0,0.000543,120]
[393730243,1762955263682,-580.36219336,0.00054356,120]
[393730244,1762955263738,-174.0,0.0005437,120]
[393730245,1762955263797,-489.0,0.0005437,120]
[393730246,1762955263856,-2000.0,0.0005444,49]
[393730247,1762955263911,-46461.7628,0.00054444,120]
[393730248,1762955263965,-934.78,0.0005452,120]
[393730249,1762955264147,9284.11410646,0.0005,30]
[393730250,1762955264232,172.26,0.00040232,120]
[393730251,1762955264943,150.0,0.00040232,30]
[393730252,1762955286923,-150.0,0.00040232,30]
[393730253,1762955286997,-150.0,0.00054221,30]
[393730254,1762955287049,-934.78,0.00054794,120]
[393730255,1762955287097,-500.0,0.00054794,120]
[393730256,1762955287147,-500.0,0.00054794,120]
[393730257,1762955287198,-500.0,0.00054794,120]
[393730258,1762955287247,-580.49307085,0.00054794,120]
[393730259,1762955287488,-500.0,0.00054795,35]
[393730260,1762955287539,-500.0,0.00054795,35]
[393730261,1762955287592,-2247.25995691,0.000548,30]
[393730262,1762955287660,-1000.0,0.00054999,120]
[393730263,1762955287718,-50000.0,0.00055,95]
[393730264,1762955287768,-214.64900255,0.00055,120]
[393730265,1762955287819,-298.41266415,0.00055,120]
[393730266,1762955287869,-500.0,0.00055,30]
[393730267,1762955287918,-185.0,0.00055,60]
[393730268,1762955287967,-2000.0,0.00055,120]
[393730269,1762955288019,-580.0,0.00055,120]
[393730270,1762955288070,-153.0,0.00055,120]
[393730271,1762955288134,-5789.19,0.00055,120]
[393730272,1762955288200,-8859.53,0.00055,120]
[393730273,1762955288256,-2240.79788301,0.00055,120]
[393730274,1762955288308,-252175.87347403,0.00055,120]
[393730275,1762955288357,-416.8,0.00055,60]
[393730276,1762955288410,-2000.0,0.00055,120]
[393730277,1762955288462,-215.81,0.00055,120]
[393730278,1762955288516,-422.61,0.00055,120]
[393730279,1762955288568,-7750.0,0.00055,120]
[393730280,1762955288620,-273.742553,0.00055,100]
[393730281,1762955288673,-150.0,0.00055,120]
[393730282,1762955288729,-934.78,0.00055068,120]
[393730283,1762955288782,-356.634,0.00055107,104]
[393730284,1762955288836,-150.0,0.00055214,120]
[393730285,1762955288889,-155.0,0.000553,120]
[393730286,1762955288950,-1034.25,0.00055307,120]
[393730287,1762955289014,-934.78,0.00055342,120]
[393730288,1762955289066,-3301.36334089,0.000555,120]
[393730289,1762955289121,-1543.0,0.000555,120]
[393730290,1762955289179,-2364.0,0.000555,120]
[393730291,1762955289234,-1000.0,0.00055539,120]
[393730292,1762955289287,-934.8025425,0.00055616,120]
[393730293,1762955289335,-3025361.4,0.0005569,120]
[393730294,1762955289388,-153.0,0.000557,120]
[393730295,1762955289443,-150.0,0.00055749,120]
[393730296,1762955289499,-1000.0,0.00055999,120]
[393730297,1762955289548,-1000.0,0.00056,120]
[393730298,1762955289598,-1065.44006814,0.00056,120]
[393730299,1762955289649,-715.17125538,0.00056,120]
[393730300,1762955289701,-320.0,0.00056,120]
[393730301,1762955289758,-465.5,0.00056,120]
[393730302,1762955289817,-737.66257974,0.00056,120]
[393730303,1762955289872,-5034.5617738,0.00056,120]
[393730304,1762955289931,-2772.17696784,0.00056,120]
[393730305,1762955289980,-20094.01153004,0.00056,120]
[393730306,1762955290031,-3032.41,0.00056,120]
[393730307,1762955290083,-2000.0,0.00056,120]
[393730308,1762955290135,-200.0,0.00056,120]
[393730309,1762955290183,-23674.57011814,0.00056,120]
[393730310,1762955290232,-200.0,0.00056,120]
[393730311,1762955290279,-150.0,0.00056,120]
[393730312,1762955290324,-2373.11130437,0.00056,120]
[393730313,1762955290373,-3065.73612062,0.00056,120]
[393730314,1762955290422,-155.0,0.000564,120]
[393730315,1762955290471,-153.0,0.000565,120]
[393730316,1762955290518,-2882.0,0.0005658,63]
[393730317,1762955290566,-6303.0,0.000566,120]
[393730318,1762955290612,-445.00000099,0.00056986,120]
[393730319,1762955290665,-175.73322246,0.00056986,30]
[393730320,1762955290713,-1000.0,0.00056999,120]
[393730321,1762955290760,-1157.26494181,0.00057,120]
[393730322,1762955290811,-275.18689258,0.00057,120]
[393730323,1762955290862,-700.0,0.00057,120]
[393730324,1762955290908,-2000.0,0.00057,120]
[393730325,1762955290955,-153.0,0.000572,120]
[393730326,1762955291001,-155.0,0.000574,120]
[393730327,1762955291046,-395.80915067,0.000575,30]
[393730328,1762955291092,-757.0,0.000575,30]
[393730329,1762955291136,-164.44623621,0.00057534,60]
[393730330,1762955291182,-1317.83098043,0.00057534,60]
[393730331,1762955291229,-1320.16,0.00057677,120]
[393730332,1762955291274,-150.0,0.00057785,120]
[393730333,1762955291318,-150.0,0.00057891,120]
[393730334,1762955291361,-153.0,0.000579,120]
[393730335,1762955291404,-1000.0,0.00057999,120]
[393730336,1762955291450,-150.0,0.00058,120]
[393730337,1762955291493,-150.0,0.00058,120]
[393730338,1762955291537,-150.0,0.00058,120]
[393730339,1762955291584,-150.0,0.00058,120]
[393730340,1762955291633,-150.0,0.00058,120]
[393730341,1762955291679,-150.0,0.00058,120]
[393730342,1762955291724,-150.0,0.00058,120]
[393730343,1762955291773,-150.0,0.00058,120]
[393730344,1762955291826,-150.0,0.00058,120]
[393730345,1762955291876,-150.0,0.00058,120]
[393730346,1762955291926,-150.0,0.00058,120]
[393730347,1762955291972,-150.0,0.00058,120]
[393730348,1762955292020,-150.0,0.00058,120]
[393730349,1762955292064,-164.68874973,0.00058,120]
[393730350,1762955292110,-150.0,0.00058,120]
[393730351,1762955292160,-1000.0,0.00058,120]
[393730352,1762955292205,-2000.0,0.00058,120]
[393730353,1762955292251,-200.0,0.00058,120]
[393730354,1762955292297,-530.0,0.00058,120]
[393730355,1762955292343,-468.0,0.00058,120]
[393730356,1762955292397,-1543.0,0.00058,120]
[393730357,1762955292454,-200.0,0.00058,120]
[393730358,1762955292500,-200366.53847259,0.00058,120]
[393730359,1762955292546,-150.0,0.00058099,120]
[393730360,1762955292592,-150.0,0.00058099,120]
[393730361,1762955292805,-150.0,0.00058109,120]
[393730362,1762955292863,-150.0,0.00058131,120]
[393730363,1762955292917,-150.0,0.00058195,120]
[393730364,1762955292974,-150.0,0.00058198,120]
[393730365,1762955293023,-150.0,0.00058198,120]
[393730366,1762955293071,-150.0,0.00058218,120]
[393730367,1762955293118,-150.0,0.00058238,120]
[393730368,1762955293166,-150.0,0.00058263,120]
[393730369,1762955293213,-150.0,0.00058297,120]
[393730370,1762955293264,-150.0,0.00058297,120]
[393730371,1762955293309,-150.0,0.00058299,120]
[393730372,1762955293354,-150.0,0.00058327,120]
[393730373,1762955293397,-150.0,0.00058339,120]
[393730374,1762955293443,-150.0,0.00058379,120]
[393730375,1762955293486,-150.0,0.0005839,120]
[393730376,1762955293529,-150.0,0.00058394,120]
[393730377,1762955293574,-150.0,0.00058396,120]
[393730378,1762955293620,-150.0,0.00058396,120]
[393730379,1762955293669,-155.0,0.000584,120]
[393730380,1762955293718,-2873.2,0.000584,120]
[393730381,1762955293764,-150.0,0.00058437,120]
[393730382,1762955293811,-150.0,0.00058477,120]
[393730383,1762955293859,-150.0,0.00058495,120]
[393730384,1762955293905,-150.0,0.00058495,120]
[393730385,1762955293951,-150.0,0.00058526,120]
[393730386,1762955293996,-150.0,0.00058537,120]
[393730387,1762955294041,-150.0,0.00058546,120]
[393730388,1762955294091,-150.0,0.00058585,120]
[393730389,1762955294138,-150.0,0.00058594,120]
[393730390,1762955294190,-150.0,0.00058594,120]
[393730391,1762955294241,-150.0,0.00058655,120]
[393730392,1762955294287,-150.0,0.00058657,120]
[393730393,1762955294332,-150.0,0.00058678,120]
[393730394,1762955294376,-150.0,0.00058694,120]
[393730395,1762955294422,-150.0,0.00058694,120]
[393730396,1762955294467,-153.0,0.000587,120]
[393730397,1762955294516,-150.0,0.00058716,120]
[393730398,1762955294563,-150.0,0.00058716,120]
[393730399,1762955294607,-150.0,0.00058716,120]
[393730400,1762955294651,-150.0,0.00058758,120]
[393730401,1762955294697,-150.0,0.00058764,120]
[393730402,1762955294742,-150.0,0.00058781,120]
[393730403,1762955294787,-150.0,0.00058789,120]
[393730404,1762955294842,-150.0,0.00058793,120]
[393730405,1762955294895,-150.0,0.00058793,120]
[393730406,1762955294947,-1000.0,0.000588,120]
[393730407,1762955294997,-1000.0,0.000588,120]
[393730408,1762955295047,-1000.0,0.000588,120]
[393730409,1762955295096,-1000.0,0.000588,120]
[393730410,1762955295146,-1000.0,0.000588,120]
[393730411,1762955295194,-1000.0,0.000588,120]
[393730412,1762955295242,-550.0,0.000588,120]
[393730413,1762955295287,-200.0,0.00058802,120]
[393730414,1762955295333,-150.0,0.00058858,120]
[393730415,1762955295379,-150.0,0.00058873,120]
[393730416,1762955295425,-150.0,0.00058892,120]
[393730417,1762955295469,-150.0,0.00058892,120]
[393730418,1762955295513,-150.0,0.0005892,120]
[393730419,1762955295562,-150.0,0.00058954,120]
[393730420,1762955295609,-2000.0,0.0005896,63]
[393730421,1762955295658,-150.0,0.00058976,120]
[393730422,1762955295707,-1000.0,0.00058981,120]
[393730423,1762955295758,-1000.0,0.00058981,120]
[393730424,1762955295806,-1000.0,0.00058981,120]
[393730425,1762955295854,-1000.0,0.00058981,120]
[393730426,1762955295901,-1000.0,0.00058981,120]
[393730427,1762955295948,-1000.0,0.00058981,120]
[393730428,1762955295998,-1000.0,0.00058981,120]
[393730429,1762955296046,-1000.0,0.00058981,120]
[393730430,1762955296092,-1000.0,0.00058981,120]
[393730431,1762955296138,-1000.0,0.00058981,120]
[393730432,1762955296187,-1000.0,0.00058981,120]
[393730433,1762955296238,-1000.0,0.00058981,120]
[393730434,1762955296288,-1000.0,0.00058981,120]
[393730435,1762955296341,-177.51,0.00058981,120]
[393730436,1762955296391,-150.0,0.00058983,120]
[393730437,1762955296448,-150.0,0.00058991,120]
[393730438,1762955296499,-150.0,0.00058991,120]
[393730439,1762955296548,-1000.0,0.00058999,120]
[393730440,1762955296596,-2000.0,0.00059,120]
[393730441,1762955296646,-289.0524201,0.00059,30]
[393730442,1762955296694,-2000.0,0.00059,120]
[393730443,1762955296740,-3000.0,0.00059,120]
[393730444,1762955296789,-150.0,0.00059,120]
[393730445,1762955296842,-150.0,0.00059017,120]
[393730446,1762955296894,-150.0,0.00059046,120]
[393730447,1762955296947,-150.0,0.00059052,120]
[393730448,1762955297007,-150.0,0.00059074,120]
[393730449,1762955297057,-150.0,0.00059074,120]
[393730450,1762955297104,-150.0,0.0005909,120]
[393730451,1762955297149,-150.0,0.0005909,120]
[393730452,1762955297195,-150.0,0.00059092,120]
[393730453,1762955297241,-150.0,0.00059137,120]
[393730454,1762955297287,-150.0,0.00059171,120]
[393730455,1762955297331,-150.0,0.00059183,120]
[393730456,1762955297376,-150.0,0.00059189,120]
[393730457,1762955297424,-150.0,0.00059189,120]
[393730458,1762955297472,-150.0,0.00059193,120]
[393730459,1762955297522,-150.0,0.00059201,120]
[393730460,1762955297570,-150.0,0.00059247,120]
[393730461,1762955297615,-150.0,0.00059288,120]
[393730462,1762955297660,-150.0,0.00059288,120]
[393730463,1762955297706,-150.0,0.0005931,120]
[393730464,1762955297939,-150.0,0.00059315,120]
[393730465,1762955297986,-150.0,0.00059356,120]
[393730466,1762955298033,-150.0,0.00059367,120]
[393730467,1762955298078,-500.0,0.0005937,120]
[393730468,1762955298121,-150.0,0.00059388,120]
[393730469,1762955298169,-150.0,0.00059388,120]
[393730470,1762955298218,-153.0,0.000594,120]
[393730471,1762955298270,-150.0,0.0005942,120]
[393730472,1762955298319,-150.0,0.00059432,120]
[393730473,1762955298364,-150.0,0.00059432,120]
[393730474,1762955298408,-150.0,0.00059432,120]
[393730475,1762955298454,-150.0,0.00059446,120]
[393730476,1762955298500,-150.0,0.00059487,120]
[393730477,1762955298548,-150.0,0.00059487,120]
[393730478,1762955298593,-155.0,0.000595,120]
[393730479,1762955298640,-150.0,0.00059516,120]
[393730480,1762955298691,-150.0,0.00059529,120]
[393730481,1762955298739,-150.0,0.00059562,120]
[393730482,1762955298788,-150.0,0.00059566,30]
[393730483,1762955298842,-282.96959822,0.00059566,30]
[393730484,1762955298891,-150.0,0.00059578,120]
[393730485,1762955298940,-150.0,0.00059586,120]
[393730486,1762955298987,-150.0,0.00059586,120]
[393730487,1762955299036,-150.0,0.00059611,120]
[393730488,1762955299081,-150.0,0.00059638,120]
[393730489,1762955299130,-150.0,0.0005967,120]
[393730490,1762955299177,-150.0,0.00059685,120]
[393730491,1762955299224,-150.0,0.00059685,120]
[393730492,1762955299268,-150.0,0.00059695,120]
[393730493,1762955299312,-150.0,0.00059709,120]
[393730494,1762955299358,-150.0,0.00059747,120]
[393730495,1762955299404,-150.0,0.00059757,120]
[393730496,1762955299452,-150.0,0.00059784,120]
[393730497,1762955299499,-150.0,0.00059784,120]
[393730498,1762955299547,-150.0,0.00059841,120]
[393730499,1762955299595,-150.0,0.00059856,120]
[393730500,1762955299643,-150.0,0.00059883,120]
[393730501,1762955299689,-150.0,0.00059883,120]
[393730502,1762955299736,-150.0,0.00059895,120]
[393730503,1762955299783,-1237.31713182,0.000599,120]
[393730504,1762955299832,-150.0,0.00059909,120]
[393730505,1762955299880,-150.0,0.00059952,120]
[393730506,1762955299930,-150.0,0.00059966,120]
[393730507,1762955299991,-150.0,0.00059972,120]
[393730508,1762955300040,-150.0,0.00059982,120]
[393730509,1762955300088,-150.0,0.00059982,120]
[393730510,1762955300138,-1000.0,0.00059999,120]
[393730511,1762955300186,-150.0,0.0006,120]
[393730512,1762955300233,-500.0,0.0006,120]
[393730513,1762955300280,-172.68349379,0.0006,120]
[393730514,1762955300325,-486.83366899,0.0006,120]
[393730515,1762955300372,-3000.0,0.0006,120]
[393730516,1762955300418,-200.0,0.0006,120]
[393730517,1762955300463,-30000.0,0.0006,120]
[393730518,1762955300507,-538.0,0.0006,120]
[393730519,1762955300551,-5789.19,0.0006,120]
[393730520,1762955300595,-8859.53,0.0006,120]
[393730521,1762955300639,-1167.35175596,0.0006,30]
[393730522,1762955300689,-268.5577073,0.0006,120]
[393730523,1762955300735,-215.81,0.0006,120]
[393730524,1762955300785,-422.61,0.0006,120]
[393730525,1762955300839,-15838.14,0.0006,30]
[393730526,1762955300887,-1183.40908712,0.0006,120]
[393730527,1762955300933,-913.5989731,0.0006,120]
[393730528,1762955300978,-106020.0,0.0006,120]
[393730529,1762955301024,-11933.0,0.0006,90]
[393730530,1762955301071,-150.0,0.0006,120]
[393730531,1762955301117,-150.0,0.0006,120]
[393730532,1762955301166,-150.0,0.0006,120]
[393730533,1762955301217,-150.0,0.0006,120]
[393730534,1762955301263,-150.0,0.0006,120]
[393730535,1762955301308,-14031.89735055,0.0006,120]
[393730536,1762955301352,-2239.14,0.0006,30]
[393730537,1762955301397,-150.0,0.00060035,120]
[393730538,1762955301447,-150.0,0.00060075,120]
[393730539,1762955301493,-150.0,0.00060082,120]
[393730540,1762955301540,-150.0,0.00060082,120]
[393730541,1762955301587,-153.0,0.000601,120]
[393730542,1762955301636,-150.0,0.00060104,120]
[393730543,1762955301682,-150.0,0.00060148,120]
[393730544,1762955301727,-150.0,0.00060148,120]
[393730545,1762955301774,-150.0,0.00060148,120]
[393730546,1762955301823,-150.0,0.00060148,120]
[393730547,1762955301873,-150.0,0.00060148,120]
[393730548,1762955301919,-150.0,0.00060148,120]
[393730549,1762955301965,-150.0,0.00060148,120]
[393730550,1762955302010,-150.0,0.00060181,120]
[393730551,1762955302056,-150.0,0.00060181,120]
[393730552,1762955302102,-150.0,0.00060184,120]
[393730553,1762955302149,-150.0,0.00060235,120]
[393730554,1762955302480,1061195.22995962,0.00060264,120]
[393730559,1762955431863,-250.0,0.00017,2]
[393730560,1762955431873,-161.68,0.00024176,2]
[393730561,1762955431882,-696.07916812,0.00024488,2]
[393730562,1762955431891,-152.49,0.00024907,2]
[393730563,1762955431900,-1598.64,0.00025,2]
[393730564,1762955431910,-194.52972287,0.00027571,2]
[393730565,1762955431920,-500.0,0.00027671,2]
[393730566,1762955431928,-161.68,0.00030041,2]
[393730567,1762955431938,-429.06480948,0.00034005,2]
[393730568,1762955431947,-1320.16,0.00034115,2]
[393730569,1762955431956,-153.0,0.00034228,3]
[393730570,1762955431965,-382.0,0.00034229,3]
[393730571,1762955431975,-1600.0,0.00034229,3]
[393730572,1762955431984,-400.0,0.00034229,3]
[393730573,1762955431994,-400.0,0.00034229,2]
[393730574,1762955432004,-722.85,0.0003423,2]
[393730575,1762955432191,-13888.54,0.0003423,2]
[393730576,1762955432200,-3084.99,0.0003423,2]
[393730577,1762955432209,-150.0,0.00034232,2]
[393730579,1762955432219,-152.0,0.00034413,3]
[393730581,1762955432229,-150.0,0.00034564,2]
[393730583,1762955432238,-999.0,0.00035052,3]
[393730585,1762955432247,-1211.5,0.000351,2]
[393730587,1762955432256,-150.0,0.00035103,2]
[393730589,1762955432265,-151.0,0.00035239,2]
[393730591,1762955432275,-151.0,0.00035239,2]
[393730593,1762955432284,-151.0,0.00035239,2]
[393730595,1762955432294,-151.0,0.00035239,2]
[393730597,1762955432303,-151.0,0.00035239,2]
[393730599,1762955432312,-151.0,0.00035239,2]
[393730600,1762955432321,-151.0,0.00035239,2]
[393730601,1762955432331,-151.0,0.00035239,2]
[393730602,1762955432340,-151.0,0.00035239,2]
[393730603,1762955432349,-151.0,0.00035239,2]
[393730604,1762955432358,-191.80353656,0.00035239,2]
[393730605,1762955432368,-212.0,0.0003526,7]
[393730606,1762955432377,-9999.99,0.0003526,2]
[393730607,1762955432386,-8274.1,0.0003526,2]
[393730608,1762955432395,-478.56668374,0.0003528,2]
[393730609,1762955432405,-1233.08489186,0.00035362,2]
[393730610,1762955432415,-200.0,0.00035403,2]
[393730611,1762955432424,-4628.27,0.00035455,2]
[393730612,1762955432434,-150.0,0.00035592,2]
[393730613,1762955432443,-161.68,0.00035905,2]
[393730614,1762955432452,-2305.1,0.00035917,2]
[393730615,1762955432462,-212.0,0.00036067,2]
[393730616,1762955432471,-152.49,0.00036115,2]
[393730617,1762955432481,-212.0,0.00036156,2]
[393730618,1762955432496,-212.0,0.00036173,2]
[393730619,1762955432505,-430.47,0.00036214,14]
[393730620,1762955432515,-212.0,0.0003633,7]
[393730621,1762955432524,-212.0,0.00036434,2]
[393730622,1762955432535,-430.47,0.00036488,14]
[393730623,1762955432543,-560.0,0.0003673,2]
[393730624,1762955432553,-430.47,0.00036762,14]
[393730625,1762955432564,-546.8033,0.00036799,2]
[393730626,1762955432573,-17432.0672,0.00036808,2]
[393730627,1762955432582,-1556.0711,0.00036808,2]
[393730628,1762955432591,-2500.0,0.00036809,2]
[393730629,1762955432601,-500.0,0.00036873,5]
[393730630,1762955432610,-12204.85057406,0.00036873,2]
[393730631,1762955432620,-156.53410879,0.00036873,15]
[393730632,1762955432629,-177.02344936,0.00036873,2]
[393730633,1762955432638,-163.51,0.00036899,2]
[393730634,1762955432647,-285.39348468,0.00036908,2]
[393730635,1762955432656,-178.38352887,0.00036908,2]
[393730636,1762955432667,-1019.5405,0.00036908,2]
[393730637,1762955432676,-500.0,0.00036908,7]
[393730638,1762955432686,-500.0,0.00036908,2]
[393730639,1762955432695,-500.0,0.00036908,15]
[393730640,1762955432704,-500.0,0.00036908,15]
[393730641,1762955432714,-523.63656899,0.00036908,7]
[393730642,1762955432723,-500.0,0.00036908,15]
[393730643,1762955432733,-540.49874389,0.00036908,15]
[393730644,1762955432742,-500.0,0.00036908,2]
[393730645,1762955432752,-500.0,0.00036908,15]
[393730646,1762955432761,-500.0,0.00036908,15]
[393730647,1762955432771,-500.0,0.00036908,15]
[393730648,1762955432781,-432.18111829,0.00036908,2]